fUSD/lending_fUSD_20251217
["ID","MTS","AMOUNT","RATE_DAILY","PERIOD"]
[398939290,1766009449251,-150.0,0.00016362,2]
[398939291,1766009449261,-150.0,0.00016365,2]
[398939292,1766009449270,-500.0,0.00016367,2]
[398939293,1766009449280,-500.0,0.00016367,2]
[398939294,1766009449290,-150.0,0.00016367,2]
[398939295,1766009449299,-204.19787838,0.00016367,2]
[398939296,1766009449309,-500.0,0.00016367,2]
[398939297,1766009449318,-223.93591667,0.00016367,2]
[398939298,1766009449328,-500.0,0.00016367,2]
[398939299,1766009449337,-500.0,0.00016367,2]
[398939300,1766009449348,-547.0,0.00016367,2]
[398939301,1766009449361,-500.0,0.00016367,2]
[398939302,1766009449371,-451.0,0.00016367,2]
[398939303,1766009449380,-500.0,0.00016367,2]
[398939304,1766009449392,-500.0,0.00016367,2]
[398939305,1766009449403,-1600.0,0.00016368,2]
[398939306,1766009449413,-150.0,0.00016376,2]
[398939307,1766009449423,-150.0,0.00016377,2]
[398939308,1766009449436,-150.0,0.00016378,2]
[398939309,1766009449448,-150.0,0.00016384,2]
[398939310,1766009449460,-150.0,0.00016387,2]
[398939311,1766009449470,-150.0,0.00016392,2]
[398939312,1766009449480,-150.0,0.00016397,2]
[398939313,1766009449491,-228.0,0.000164,2]
[398939314,1766009449503,-319.0,0.000164,2]
[398939315,1766009449515,-182.0,0.000164,2]
[398939316,1766009449525,-183.11478265,0.000164,2]
[398939317,1766009449535,-150.0,0.00016402,2]
[398939318,1766009449546,-150.0,0.00016402,2]
[398939319,1766009449555,-23431.55261469,0.00016403,2]
[398939320,1766009449565,-150.0,0.00016403,2]
[398939321,1766009449575,-823.0,0.00016413,2]
[398939322,1766009449585,-823.0,0.00016413,2]
[398939323,1766009449595,-150.0,0.0001642,2]
[398939324,1766009449607,-150.0,0.0001642,2]
[398939325,1766009449617,-150.0,0.0001642,2]
[398939326,1766009449628,-150.0,0.0001642,2]
[398939327,1766009449638,-150.0,0.0001642,2]
[398939328,1766009449649,-150.0,0.0001642,2]
[398939329,1766009449659,-150.0,0.00016429,2]
[398939330,1766009449668,-150.0,0.00016429,2]
[398939331,1766009449678,-150.0,0.00016432,2]
[398939332,1766009449687,-500.0,0.00016437,2]
[398939333,1766009449697,-500.0,0.00016437,2]
[398939334,1766009449707,-1194.59810132,0.00016437,5]
[398939335,1766009449716,-500.0,0.00016437,2]
[398939336,1766009449727,-500.0,0.00016437,2]
[398939337,1766009449736,-500.0,0.00016437,2]
[398939338,1766009449746,-500.0,0.00016437,2]
[398939339,1766009449756,-500.0,0.00016437,2]
[398939340,1766009449767,-500.0,0.00016437,2]
[398939341,1766009449777,-500.0,0.00016437,2]
[398939342,1766009449787,-500.0,0.00016437,2]
[398939343,1766009449796,-500.0,0.00016437,2]
[398939344,1766009449806,-500.0,0.00016437,2]
[398939345,1766009449815,-500.0,0.00016437,2]
[398939346,1766009449825,-500.0,0.00016437,2]
[398939347,1766009449835,-500.0,0.00016438,2]
[398939348,1766009449845,-155.2202106,0.00016438,2]
[398939349,1766009449854,-368.86787241,0.00016438,2]
[398939350,1766009449865,-150.0,0.00016438,2]
[398939351,1766009449876,-500.0,0.00016438,2]
[398939352,1766009449886,-150.0,0.00016438,2]
[398939353,1766009449895,-572.6774988,0.00016438,2]
[398939354,1766009449908,-234.17527772,0.00016438,2]
[398939355,1766009449920,-150.0,0.00016438,2]
[398939356,1766009449930,-200.0,0.00016438,2]
[398939357,1766009449940,-300.0,0.00016438,2]
[398939358,1766009449952,-300.0,0.00016438,2]
[398939359,1766009449962,-300.0,0.00016438,2]
[398939360,1766009449971,-300.0,0.00016438,2]
[398939361,1766009449981,-300.0,0.00016438,2]
[398939362,1766009449991,-300.0,0.00016438,2]
[398939363,1766009450000,-300.0,0.00016438,2]
[398939364,1766009450010,-300.0,0.00016438,2]
[398939365,1766009450020,-300.0,0.00016438,2]
[398939366,1766009450030,-300.0,0.00016438,2]
[398939367,1766009450040,-300.0,0.00016438,2]
[398939368,1766009450050,-300.0,0.00016438,2]
[398939369,1766009450060,-300.0,0.00016438,2]
[398939370,1766009450070,-300.0,0.00016438,2]
[398939371,1766009450079,-300.0,0.00016438,2]
[398939372,1766009450090,-300.0,0.00016438,2]
[398939373,1766009450100,-300.0,0.00016438,2]
[398939374,1766009450111,-300.0,0.00016438,2]
[398939375,1766009450122,-300.0,0.00016438,2]
[398939376,1766009450132,-300.0,0.00016438,2]
[398939377,1766009450142,-300.0,0.00016438,2]
[398939378,1766009450152,-300.0,0.00016438,2]
[398939379,1766009450162,-300.0,0.00016438,2]
[398939380,1766009450173,-284.10900433,0.00016438,2]
[398939381,1766009450183,-500.0,0.00016438,2]
[398939382,1766009450193,-1221.99877065,0.00016438,2]
[398939383,1766009450465,-1221.99877065,0.00016438,2]
[398939384,1766009450476,-1221.99877065,0.00016438,2]
[398939385,1766009450486,-1221.99877065,0.00016438,2]
[398939386,1766009450496,-1221.99877065,0.00016438,2]
[398939387,1766009450505,-1221.99877065,0.00016438,2]
[398939388,1766009450515,-1221.99877065,0.00016438,2]
[398939389,1766009450526,-1221.99877065,0.00016438,2]
[398939390,1766009450535,-1221.99877065,0.00016438,2]
[398939391,1766009450545,-1221.99877065,0.00016438,2]
[398939392,1766009450555,-1221.99877065,0.00016438,2]
[398939393,1766009450564,-1221.99877065,0.00016438,2]
[398939394,1766009450573,-1221.99877065,0.00016438,2]
[398939395,1766009450583,-1221.99877065,0.00016438,2]
[398939396,1766009450594,-1221.99877065,0.00016438,2]
[398939397,1766009450603,-1221.99877065,0.00016438,2]
[398939398,1766009450613,-1221.99877065,0.00016438,2]
[398939399,1766009450622,-1221.99877065,0.00016438,2]
[398939400,1766009450632,-1221.99877065,0.00016438,2]
[398939401,1766009450642,-1221.99877065,0.00016438,2]
[398939402,1766009450651,-1221.99877065,0.00016438,2]
[398939403,1766009450661,-1221.99877065,0.00016438,2]
[398939404,1766009450671,-1221.99877065,0.00016438,2]
[398939405,1766009450680,-1221.99877065,0.00016438,2]
[398939406,1766009450689,-1221.99877065,0.00016438,2]
[398939407,1766009450699,-1221.99877065,0.00016438,2]
[398939408,1766009450708,-1221.99877065,0.00016438,2]
[398939409,1766009450719,-1221.99877065,0.00016438,2]
[398939410,1766009450728,-1221.99877065,0.00016438,2]
[398939411,1766009450738,-1221.99877065,0.00016438,2]
[398939412,1766009450747,-1221.99877065,0.00016438,2]
[398939413,1766009450757,-1221.99877065,0.00016438,2]
[398939414,1766009450766,-1221.99877065,0.00016438,2]
[398939415,1766009450775,-1221.99877065,0.00016438,2]
[398939416,1766009450785,-1221.99877065,0.00016438,2]
[398939417,1766009450794,-600.0,0.00016438,2]
[398939418,1766009450805,-11480.45,0.00016438,2]
[398939419,1766009450816,-150.0,0.00016438,2]
[398939420,1766009450825,-800.0,0.00016438,2]
[398939421,1766009450835,-354.98,0.00016442,2]
[398939422,1766009450844,-150.0,0.00016453,2]
[398939423,1766009450854,-150.0,0.00016454,2]
[398939424,1766009450863,-150.0,0.00016455,2]
[398939425,1766009450873,-150.0,0.00016457,2]
[398939426,1766009450883,-150.0,0.00016464,2]
[398939427,1766009450892,-150.0,0.00016464,2]
[398939428,1766009450902,-150.0,0.00016466,2]
[398939429,1766009450912,-150.0,0.00016475,2]
[398939430,1766009450921,-150.0,0.00016477,2]
[398939431,1766009450930,-150.0,0.00016479,2]
[398939432,1766009450940,-150.0,0.00016482,2]
[398939433,1766009450951,-150.0,0.00016487,2]
[398939434,1766009450960,-150.0,0.00016493,2]
[398939435,1766009450970,-150.0,0.00016501,2]
[398939436,1766009450980,-500.0,0.00016504,2]
[398939437,1766009450989,-500.0,0.00016504,2]
[398939438,1766009450998,-450.0,0.00016504,2]
[398939439,1766009451008,-500.0,0.00016504,2]
[398939440,1766009451018,-500.0,0.00016504,2]
[398939441,1766009451028,-547.0,0.00016504,2]
[398939442,1766009451038,-500.0,0.00016504,2]
[398939443,1766009451047,-451.0,0.00016504,2]
[398939444,1766009451057,-500.0,0.00016504,2]
[398939445,1766009451066,-500.0,0.00016504,2]
[398939446,1766009451075,-150.0,0.00016505,2]
[398939447,1766009451085,-150.0,0.00016507,2]
[398939448,1766009451094,-236.67,0.00016508,2]
[398939449,1766009451104,-150.0,0.00016509,2]
[398939450,1766009451114,-150.0,0.00016511,2]
[398939451,1766009451124,-150.0,0.0001652,2]
[398939452,1766009451134,-150.0,0.0001653,2]
[398939453,1766009451144,-150.0,0.0001653,2]
[398939454,1766009451154,-17793.84744638,0.0001653,2]
[398939455,1766009451163,-3292.0,0.00016534,2]
[398939456,1766009451172,-150.0,0.00016535,2]
[398939457,1766009451181,-150.0,0.00016536,2]
[398939458,1766009451191,-150.0,0.00016548,2]
[398939459,1766009451201,-150.0,0.00016551,2]
[398939460,1766009451210,-150.0,0.00016553,2]
[398939461,1766009451220,-150.0,0.00016555,2]
[398939462,1766009451230,-150.0,0.00016562,2]
[398939463,1766009451239,-150.0,0.00016562,2]
[398939464,1766009451248,-150.0,0.00016562,2]
[398939465,1766009451258,-150.0,0.00016566,2]
[398939466,1766009451268,-1500.0,0.00016568,2]
[398939467,1766009451278,-211.82211152,0.00016568,2]
[398939468,1766009451287,-1500.0,0.00016568,2]
[398939469,1766009451297,-1500.0,0.00016568,2]
[398939470,1766009451306,-1500.0,0.00016568,2]
[398939471,1766009451316,-1570.99793084,0.00016568,2]
[398939472,1766009451326,-1500.0,0.00016568,2]
[398939473,1766009451336,-1591.38673749,0.00016568,2]
[398939474,1766009451346,-1500.0,0.00016568,2]
[398939475,1766009451357,-1500.0,0.00016568,2]
[398939476,1766009451368,-1500.0,0.00016568,2]
[398939477,1766009451377,-1500.0,0.00016568,2]
[398939478,1766009451387,-412.77072923,0.00016568,2]
[398939479,1766009451396,-150.0,0.0001657,2]
[398939480,1766009451407,-500.0,0.00016575,2]
[398939481,1766009451416,-150.0,0.00016575,2]
[398939482,1766009451426,-500.0,0.00016575,2]
[398939483,1766009451436,-295.67984655,0.00016575,2]
[398939484,1766009451446,-150.0,0.00016575,2]
[398939485,1766009451455,-500.0,0.00016575,2]
[398939486,1766009451464,-150.0,0.00016581,2]
[398939487,1766009451474,-150.0,0.00016584,2]
[398939488,1766009451484,-150.0,0.00016587,2]
[398939489,1766009451493,-150.0,0.00016588,2]
[398939490,1766009451503,-150.0,0.00016594,2]
[398939491,1766009451513,-150.0,0.00016594,2]
[398939492,1766009451523,-150.0,0.00016603,2]
[398939493,1766009451532,-150.0,0.00016605,2]
[398939494,1766009451542,-150.0,0.00016606,2]
[398939495,1766009451552,-150.0,0.00016615,2]
[398939496,1766009451562,-150.0,0.0001662,2]
[398939497,1766009451572,-150.0,0.00016621,2]
[398939498,1766009451581,-1833.72,0.00016628,2]
[398939499,1766009451590,-150.0,0.00016631,2]
[398939500,1766009451599,-150.0,0.00016638,2]
[398939501,1766009451609,-150.0,0.00016639,2]
[398939502,1766009451619,-150.0,0.0001664,2]
[398939503,1766009451628,-500.0,0.00016641,2]
[398939504,1766009451638,-500.0,0.00016641,2]
[398939505,1766009451648,-489.10428919,0.00016641,2]
[398939506,1766009451658,-500.0,0.00016641,2]
[398939507,1766009451667,-547.0,0.00016641,2]
[398939508,1766009451677,-500.0,0.00016641,2]
[398939509,1766009451686,-451.0,0.00016641,2]
[398939510,1766009451696,-500.0,0.00016641,2]
[398939511,1766009451705,-500.0,0.00016641,2]
[398939512,1766009451714,-150.0,0.00016641,2]
[398939513,1766009451724,-150.0,0.00016647,2]
[398939514,1766009451734,-150.0,0.00016653,2]
[398939515,1766009451743,-150.0,0.00016657,2]
[398939516,1766009451753,-150.0,0.00016658,2]
[398939517,1766009451762,-4189.60113188,0.0001666,2]
[398939518,1766009451772,-150.0,0.00016668,2]
[398939519,1766009451782,-150.0,0.00016674,2]
[398939520,1766009451792,-150.0,0.00016676,2]
[398939521,1766009451802,-150.0,0.00016681,2]
[398939522,1766009451812,-150.0,0.00016682,2]
[398939523,1766009451821,-150.0,0.00016687,2]
[398939524,1766009451831,-150.0,0.00016694,2]
[398939525,1766009451840,-150.0,0.00016694,2]
[398939526,1766009451850,-553.64373807,0.00016697,2]
[398939527,1766009451860,-151.0,0.00016697,2]
[398939528,1766009451869,-2345.0,0.00016697,2]
[398939529,1766009451878,-150.0,0.00016703,2]
[398939530,1766009451888,-150.0,0.00016703,2]
[398939531,1766009451897,-346.64,0.00016705,2]
[398939532,1766009451906,-150.0,0.00016707,2]
[398939533,1766009451916,-150.0,0.00016709,2]
[398939534,1766009451926,-500.0,0.00016712,2]
[398939535,1766009451935,-150.0,0.00016712,2]
[398939536,1766009451945,-500.0,0.00016712,2]
[398939537,1766009451955,-150.0,0.00016712,2]
[398939538,1766009451965,-500.0,0.00016712,2]
[398939539,1766009451974,-600.0,0.00016712,2]
[398939540,1766009451984,-150.0,0.00016712,2]
[398939541,1766009451994,-150.0,0.0001672,2]
[398939542,1766009452004,-150.0,0.00016721,2]
[398939543,1766009452013,-150.0,0.00016725,2]
[398939544,1766009452023,-150.0,0.00016725,2]
[398939545,1766009452033,-150.0,0.00016731,2]
[398939546,1766009452043,-150.0,0.00016732,2]
[398939547,1766009452052,-150.0,0.00016733,2]
[398939548,1766009452062,-150.0,0.00016744,2]
[398939549,1766009452071,-150.0,0.00016747,2]
[398939550,1766009452081,-150.0,0.00016749,2]
[398939551,1766009452090,-150.0,0.00016753,2]
[398939552,1766009452100,-150.0,0.00016758,2]
[398939553,1766009452110,-150.0,0.00016767,2]
[398939554,1766009452122,-150.0,0.00016769,2]
[398939555,1766009452133,-150.0,0.00016774,2]
[398939556,1766009452142,-503.30440339,0.00016778,2]
[398939557,1766009452152,-500.0,0.00016778,2]
[398939558,1766009452162,-150.0,0.00016778,2]
[398939559,1766009452172,-547.0,0.00016778,2]
[398939560,1766009452181,-500.0,0.00016778,2]
[398939561,1766009452190,-451.0,0.00016778,2]
[398939562,1766009452199,-500.0,0.00016778,2]
[398939563,1766009452209,-500.0,0.00016778,2]
[398939564,1766009452219,-150.0,0.00016778,2]
[398939565,1766009452229,-150.0,0.00016783,2]
[398939566,1766009452238,-150.0,0.00016785,2]
[398939567,1766009452248,-150.0,0.00016786,2]
[398939568,1766009452258,-150.0,0.00016801,2]
[398939569,1766009452267,-467.07246893,0.00016803,2]
[398939570,1766009452276,-500.0,0.00016803,2]
[398939571,1766009452286,-150.0,0.00016804,2]
[398939572,1766009452296,-150.0,0.00016809,2]
[398939573,1766009452305,-150.0,0.00016812,2]
[398939574,1766009452315,-150.0,0.00016813,2]
[398939575,1766009452324,-150.0,0.00016816,2]
[398939576,1766009452334,-150.0,0.0001682,2]
[398939577,1766009452343,-150.0,0.00016822,2]
[398939578,1766009452353,-150.0,0.00016827,2]
[398939579,1766009452366,-150.0,0.00016834,2]
[398939580,1766009452376,-150.0,0.0001684,2]
[398939581,1766009452385,-150.0,0.00016845,2]
[398939582,1766009452395,-150.0,0.00016848,2]
[398939583,1766009452405,-500.0,0.00016849,2]
[398939584,1766009452415,-179.96290479,0.00016849,2]
[398939585,1766009452425,-200.0,0.00016849,2]
[398939586,1766009452435,-151.73216425,0.00016849,2]
[398939587,1766009452445,-500.0,0.00016849,2]
[398939588,1766009452455,-150.0,0.00016853,2]
[398939589,1766009452464,-150.0,0.00016854,2]
[398939590,1766009452473,-150.0,0.00016856,2]
[398939591,1766009452483,-150.0,0.00016856,2]
[398939592,1766009452492,-150.0,0.00016858,2]
[398939593,1766009452502,-150.0,0.0001686,2]
[398939594,1766009452511,-200.0,0.00016863,2]
[398939595,1766009452520,-200.0,0.00016864,2]
[398939596,1766009452530,-200.0,0.00016864,2]
[398939597,1766009452539,-200.0,0.00016864,2]
[398939598,1766009452549,-150.0,0.00016877,2]
[398939599,1766009452558,-150.0,0.0001688,2]
[398939600,1766009452568,-150.0,0.00016882,2]
[398939601,1766009452578,-150.0,0.00016885,2]
[398939602,1766009452588,-150.0,0.00016886,2]
[398939603,1766009452599,-150.0,0.00016895,2]
[398939604,1766009452609,-150.0,0.00016899,2]
[398939605,1766009452618,-2539.3351,0.000169,2]
[398939606,1766009452629,-2856.6968,0.000169,2]
[398939607,1766009452639,-22432.6987,0.000169,2]
[398939608,1766009452650,-341.9726378,0.000169,2]
[398939609,1766009452660,-302.01604806,0.000169,2]
[398939610,1766009452670,-649.9267196,0.000169,2]
[398939611,1766009452679,-190.11155961,0.000169,2]
[398939612,1766009452688,-23431.55261469,0.000169,2]
[398939613,1766009452699,-150.0,0.00016901,2]
[398939614,1766009452709,-150.0,0.00016907,2]
[398939615,1766009452719,-203.05469177,0.00016908,2]
[398939616,1766009452730,-150.0,0.0001691,2]
[398939617,1766009452739,-150.0,0.00016913,2]
[398939618,1766009452862,-547.0,0.00016915,2]
[398939619,1766009452872,-500.0,0.00016915,2]
[398939620,1766009452882,-451.0,0.00016915,2]
[398939621,1766009452891,-500.0,0.00016915,2]
[398939622,1766009452901,-500.0,0.00016915,2]
[398939623,1766009452911,-150.0,0.00016917,2]
[398939624,1766009452922,-150.0,0.0001692,2]
[398939625,1766009452933,-150.0,0.00016932,2]
[398939626,1766009452943,-150.0,0.00016933,2]
[398939627,1766009452952,-150.0,0.00016936,2]
[398939628,1766009452962,-150.0,0.00016943,2]
[398939629,1766009452971,-151.0,0.00016947,2]
[398939630,1766009452980,-500.0,0.00016949,2]
[398939631,1766009452989,-500.0,0.00016949,2]
[398939632,1766009453001,-500.0,0.00016949,2]
[398939633,1766009453011,-500.0,0.00016949,2]
[398939634,1766009453022,-500.0,0.00016949,2]
[398939635,1766009453034,-500.0,0.00016949,2]
[398939636,1766009453047,-500.0,0.00016949,2]
[398939637,1766009453057,-358.93,0.00016949,2]
[398939638,1766009453067,-500.0,0.00016949,2]
[398939639,1766009453076,-150.0,0.0001695,2]
[398939640,1766009453085,-147247.4625706,0.0001695,2]
[398939641,1766009453094,-3482.7871891,0.0001695,2]
[398939642,1766009453104,-10448.3615673,0.0001695,2]
[398939643,1766009453113,-441742.3877116,0.0001695,2]
[398939644,1766009453122,-150.0,0.00016952,2]
[398939645,1766009453131,-150.0,0.00016953,2]
[398939646,1766009453139,-311.27445849,0.00016956,2]
[398939647,1766009453149,-2000.0,0.00016957,2]
[398939648,1766009453158,-2000.0,0.00016957,2]
[398939649,1766009453168,-2000.0,0.00016957,2]
[398939650,1766009453177,-2000.0,0.00016957,2]
[398939651,1766009453186,-2000.0,0.00016957,2]
[398939652,1766009453195,-2000.0,0.00016957,2]
[398939653,1766009453204,-2000.0,0.00016957,2]
[398939654,1766009453213,-2000.0,0.00016957,2]
[398939655,1766009453223,-2000.0,0.00016957,2]
[398939656,1766009453232,-2000.0,0.00016957,2]
[398939657,1766009453242,-2000.0,0.00016957,2]
[398939658,1766009453251,-2000.0,0.00016957,2]
[398939659,1766009453261,-150.0,0.0001696,2]
[398939660,1766009453271,-150.0,0.00016961,2]
[398939661,1766009453280,-2291.85364901,0.00016962,2]
[398939662,1766009453289,-150.0,0.00016968,2]
[398939663,1766009453299,-150.0,0.00016973,2]
[398939664,1766009453308,-150.0,0.00016973,2]
[398939665,1766009453317,-525.92146982,0.00016977,2]
[398939666,1766009453327,-500.0,0.00016977,2]
[398939667,1766009453336,-500.0,0.00016977,2]
[398939668,1766009453345,-500.0,0.00016977,2]
[398939669,1766009453355,-1000.0,0.00016983,2]
[398939670,1766009453367,-1000.0,0.00016983,2]
[398939671,1766009453377,-1000.0,0.00016983,2]
[398939672,1766009453386,-1000.0,0.00016983,2]
[398939673,1766009453395,-1000.0,0.00016983,2]
[398939674,1766009453406,-1000.0,0.00016983,2]
[398939675,1766009453415,-1000.0,0.00016983,2]
[398939676,1766009453424,-1000.0,0.00016983,2]
[398939677,1766009453433,-1000.0,0.00016983,2]
[398939678,1766009453444,-500.0,0.00016983,2]
[398939679,1766009453453,-500.0,0.00016986,2]
[398939680,1766009453463,-500.0,0.00016986,2]
[398939681,1766009453472,-500.0,0.00016986,2]
[398939682,1766009453481,-500.0,0.00016986,2]
[398939683,1766009453490,-600.0,0.00016986,2]
[398939684,1766009453500,-187.73749216,0.00016986,2]
[398939685,1766009453509,-150.0,0.00016986,2]
[398939686,1766009453519,-151.17525831,0.00016986,2]
[398939687,1766009453528,-150.00000001,0.00016986,2]
[398939688,1766009453538,-160.8607052,0.00016986,2]
[398939689,1766009453548,-280.62987413,0.00016986,2]
[398939690,1766009453556,-150.65844905,0.00016986,2]
[398939691,1766009453566,-150.91550183,0.00016986,2]
[398939692,1766009453575,-150.00000001,0.00016986,2]
[398939693,1766009453584,-151.0803606,0.00016986,2]
[398939694,1766009453593,-153.15599333,0.00016986,2]
[398939695,1766009453602,-150.0,0.00016986,2]
[398939696,1766009453611,-1863.87983717,0.0001699,2]
[398939697,1766009453621,-1863.87983717,0.0001699,2]
[398939698,1766009453631,-151.0,0.00016997,2]
[398939699,1766009453641,-1194.59810132,0.00016999,5]
[398939700,1766009453650,-500.0,0.00016999,2]
[398939701,1766009453660,-469.07,0.00016999,2]
[398939702,1766009453670,-500.0,0.00016999,2]
[398939703,1766009453680,-238.49401825,0.00016999,2]
[398939704,1766009453689,-500.0,0.00016999,2]
[398939705,1766009453699,-500.0,0.00016999,2]
[398939706,1766009453709,-500.0,0.00016999,2]
[398939707,1766009453718,-500.0,0.00016999,2]
[398939708,1766009453728,-500.0,0.00016999,2]
[398939709,1766009453738,-500.0,0.00016999,2]
[398939710,1766009453748,-500.0,0.00016999,2]
[398939711,1766009453758,-247.35450026,0.00016999,2]
[398939712,1766009453768,-500.0,0.00016999,2]
[398939713,1766009453778,-500.0,0.00016999,2]
[398939714,1766009453788,-500.0,0.00016999,2]
[398939715,1766009453798,-500.0,0.00016999,2]
[398939716,1766009453808,-500.0,0.00016999,2]
[398939717,1766009453818,-500.0,0.00016999,2]
[398939718,1766009453828,-500.0,0.00016999,2]
[398939719,1766009453838,-282.25650796,0.00016999,2]
[398939720,1766009453848,-500.0,0.00016999,2]
[398939721,1766009453858,-500.0,0.00016999,2]
[398939722,1766009453868,-500.0,0.00016999,2]
[398939723,1766009453879,-500.0,0.00016999,2]
[398939724,1766009453889,-500.0,0.00016999,2]
[398939725,1766009453899,-508.5401249,0.00016999,2]
[398939726,1766009453909,-500.0,0.00016999,2]
[398939727,1766009453920,-500.0,0.00016999,2]
[398939728,1766009453930,-500.0,0.00016999,2]
[398939729,1766009453940,-305.17878308,0.00016999,2]
[398939730,1766009453951,-359.44010989,0.00016999,2]
[398939731,1766009453961,-218.06651847,0.00016999,2]
[398939732,1766009453971,-3866552.7144927,0.00017,2]
[398939733,1766009456804,-845.30423155,0.00012522,2]
[398939734,1766009456813,-51.63576845,0.00012522,2]
[398939735,1766009457466,-793.6684631,0.00012522,2]
[398939736,1766009457476,-845.30423155,0.00012522,2]
[398939737,1766009457485,-845.30423155,0.00012522,2]
[398939738,1766009457495,-845.30423155,0.00012522,2]
[398939739,1766009457504,-845.30423155,0.00012522,2]
[398939740,1766009457514,-845.30423155,0.00012522,2]
[398939741,1766009457524,-845.30423155,0.00012522,2]
[398939742,1766009457533,-845.30423155,0.00012522,2]
[398939743,1766009457542,-845.30423155,0.00012522,2]
[398939744,1766009457551,-845.30423155,0.00012522,2]
[398939745,1766009457560,-845.30423155,0.00012522,2]
[398939746,1766009457570,-845.30423155,0.00012522,2]
[398939747,1766009457579,-845.30423155,0.00012522,2]
[398939748,1766009457588,-845.30423155,0.00012522,2]
[398939749,1766009457597,-845.30423155,0.00012522,2]
[398939750,1766009457607,-845.30423155,0.00012522,2]
[398939751,1766009457615,-845.30423155,0.00012522,2]
[398939752,1766009457624,-845.30423155,0.00012522,2]
[398939753,1766009457632,-845.30423155,0.00012522,2]
[398939754,1766009457641,-845.30423155,0.00012522,2]
[398939755,1766009457651,-845.30423155,0.00012522,2]
[398939756,1766009457659,-845.30423155,0.00012522,2]
[398939757,1766009457668,-845.30423155,0.00012522,2]
[398939758,1766009457677,-1221.99877065,0.00016438,2]
[398939759,1766009457686,-1221.99877065,0.00016438,2]
[398939760,1766009457696,-1221.99877065,0.00016438,2]
[398939761,1766009457705,-748.46283501,0.00016438,2]
[398939762,1766009457736,-473.53593564,0.00016438,2]
[398939763,1766009457745,-1221.99877065,0.00016438,2]
[398939764,1766009457754,-1018.38699412,0.00016438,2]
[398939765,1766009457778,-203.61177653,0.00016438,2]
[398939766,1766009457787,-1221.99877065,0.00016438,2]
[398939767,1766009457796,-1221.99877065,0.00016438,2]
[398939768,1766009457805,-1221.99877065,0.00016438,2]
[398939769,1766009457814,-1221.99877065,0.00016438,2]
[398939770,1766009457824,-1221.99877065,0.00016438,2]
[398939771,1766009457833,-1221.99877065,0.00016438,2]
[398939772,1766009457843,-1221.99877065,0.00016438,2]
[398939773,1766009457853,-1221.99877065,0.00016438,2]
[398939774,1766009457862,-1221.99877065,0.00016438,2]
[398939775,1766009457871,-1221.99877065,0.00016438,2]
[398939776,1766009457880,-1221.99877065,0.00016438,2]
[398939777,1766009457890,-1221.99877065,0.00016438,2]
[398939778,1766009457899,-1221.99877065,0.00016438,2]
[398939779,1766009457908,-1221.99877065,0.00016438,2]
[398939780,1766009457917,-1221.99877065,0.00016438,2]
[398939781,1766009457926,-1221.99877065,0.00016438,2]
[398939782,1766009457935,-1221.99877065,0.00016438,2]
[398939783,1766009457946,-1221.99877065,0.00016438,2]
[398939784,1766009457955,-1221.99877065,0.00016438,2]
[398939785,1766009457964,-1221.99877065,0.00016438,2]
[398939786,1766009457973,-17793.84744638,0.000169,2]
[398939787,1766009457982,-1848478.09997856,0.00017,2]
[398939788,1766009457994,-422.89223244,0.00017,2]
[398939789,1766009458011,-1316.63359998,0.00017,2]